{"text_format":"3","workbook":"xlsx","n_sheets":4,"sheets":["Início","Orçamento de casamento","Roupas-Festa-Música-Fotos","Decor-Flores-Presentes-Viagem"],"not_rendered":{"charts":1,"defined_names":22},"read":"whole","date_system":"1900"}

{"sheet":"Início","index":0,"n_rows":7,"n_cols":2,"rows_kept":7}
[null,"SOBRE ESTE MODELO"]
[null,"Use este modelo para controlar suas despesas de casamento."]
[null,"Insira os custos real e estimado incorridos nas várias categorias em planilhas separadas."]
[null,"O gráfico e o Resumo do orçamento de casamento são atualizados automaticamente para você."]
[null,"Observação: "]
[null,"há instruções adicionais na coluna A de cada planilha. Este texto está oculto de propósito. Para removê-lo, selecione a coluna A e selecione Excluir. Para reexibir o texto, selecione a coluna A e altere a cor da fonte."]
[null,"Saiba mais sobre as tabelas pressionando Shift e F10 dentro de uma tabela, selecione a opção TABELA e depois TEXTO ALTERNATIVO."]

{"sheet":"Orçamento de casamento","index":1,"n_rows":19,"n_cols":6,"rows_kept":19,"merged":[[2,2,4,5],[18,2,42,5]]}
["Crie um Orçamento de casamento nesta planilha. Atualize o resumo e o gráfico na planilha atual inserindo detalhes nas tabelas das planilhas Roupas-Festa-Música-Fotos e Decor-Flores-Presentes-Viagem. Instruções úteis sobre como usar esta planilha estão nas células desta coluna. O rótulo Data do casamento está na célula C1.",null,"Data do casamento:"]
["Insira a Data do casamento na célula C2. Os Dias restantes são calculados automaticamente na célula E2.",null,{"$f":"TODAY()+365","v":"2019-12-04"},"Dias restantes:",{"$f":"C2-TODAY()","v":365}]
["O título desta planilha está na célula C3. A próxima instrução está na célula A6.",null,"Resumo do orçamento de casamento"]
[]
[]
["A Tabela de resumo do orçamento que começa na célula C6 é atualizada automaticamente. A próxima instrução está na célula A19.",null,"CATEGORIA","ESTIMADO","REAL","ACIMA/ABAIXO"]
[null,null,"Roupas",{"$f":"Total_de_Roupas_est","v":{"v":9490,"d":"9,490.00"}},{"$f":"Total_de_Roupas_real","v":{"v":9770,"d":"9,770.00"}},{"$f":"ResumoDoOrçamento[[#This Row],[ESTIMADO]]-ResumoDoOrçamento[[#This Row],[REAL]]","v":{"v":-280,"d":"-280.00"}}]
[null,null,"Festa",{"$f":"Total_da_Festa_est","v":{"v":1050,"d":"1,050.00"}},{"$f":"Total_da_Festa_real","v":{"v":928,"d":"928.00"}},{"$f":"ResumoDoOrçamento[[#This Row],[ESTIMADO]]-ResumoDoOrçamento[[#This Row],[REAL]]","v":{"v":122,"d":"122.00"}}]
[null,null,"Música",{"$f":"Total_de_Música_entretenimento_est","v":{"v":600,"d":"600.00"}},{"$f":"Total_de_Música_entretenimento_real","v":{"v":400,"d":"400.00"}},{"$f":"ResumoDoOrçamento[[#This Row],[ESTIMADO]]-ResumoDoOrçamento[[#This Row],[REAL]]","v":{"v":200,"d":"200.00"}}]
[null,null,"Impressão",{"$f":"Total_de_Impressão_gráfica_est","v":{"v":935,"d":"935.00"}},{"$f":"Total_de_Impressão_gráfica_real","v":{"v":870,"d":"870.00"}},{"$f":"ResumoDoOrçamento[[#This Row],[ESTIMADO]]-ResumoDoOrçamento[[#This Row],[REAL]]","v":{"v":65,"d":"65.00"}}]
[null,null,"Fotografia",{"$f":"Total_de_Fotografia_est","v":{"v":1625,"d":"1,625.00"}},{"$f":"Total_de_Fotografia_real","v":{"v":1575,"d":"1,575.00"}},{"$f":"ResumoDoOrçamento[[#This Row],[ESTIMADO]]-ResumoDoOrçamento[[#This Row],[REAL]]","v":{"v":50,"d":"50.00"}}]
[null,null,"Decorações",{"$f":"Total_de_Decoração_est","v":{"v":700,"d":"700.00"}},{"$f":"Total_de_Decoração_real","v":{"v":720,"d":"720.00"}},{"$f":"ResumoDoOrçamento[[#This Row],[ESTIMADO]]-ResumoDoOrçamento[[#This Row],[REAL]]","v":{"v":-20,"d":"-20.00"}}]
[null,null,"Flores",{"$f":"Total_de_Flores_est","v":{"v":900,"d":"900.00"}},{"$f":"Total_de_Flores_real","v":{"v":850,"d":"850.00"}},{"$f":"ResumoDoOrçamento[[#This Row],[ESTIMADO]]-ResumoDoOrçamento[[#This Row],[REAL]]","v":{"v":50,"d":"50.00"}}]
[null,null,"Presentes",{"$f":"Total_de_Presentes_est","v":{"v":1345,"d":"1,345.00"}},{"$f":"Total_de_Presentes_real","v":{"v":1075,"d":"1,075.00"}},{"$f":"ResumoDoOrçamento[[#This Row],[ESTIMADO]]-ResumoDoOrçamento[[#This Row],[REAL]]","v":{"v":270,"d":"270.00"}}]
[null,null,"Viagem",{"$f":"Total_de_Viagem_transporte_est","v":{"v":100,"d":"100.00"}},{"$f":"Total_de_Viagem_transporte_real","v":{"v":165,"d":"165.00"}},{"$f":"ResumoDoOrçamento[[#This Row],[ESTIMADO]]-ResumoDoOrçamento[[#This Row],[REAL]]","v":{"v":-65,"d":"-65.00"}}]
[null,null,"Outros",{"$f":"Total_de_Outras_despesas_est","v":{"v":885,"d":"885.00"}},{"$f":"Total_de_Outras_despesas_real","v":{"v":1021,"d":"1,021.00"}},{"$f":"ResumoDoOrçamento[[#This Row],[ESTIMADO]]-ResumoDoOrçamento[[#This Row],[REAL]]","v":{"v":-136,"d":"-136.00"}}]
[null,null,"Total de despesas",{"$f":"SUBTOTAL(109,ResumoDoOrçamento[ESTIMADO])","v":{"v":17630,"d":"17,630.00"}},{"$f":"SUBTOTAL(109,ResumoDoOrçamento[REAL])","v":{"v":17374,"d":"17,374.00"}},{"$f":"SUBTOTAL(109,ResumoDoOrçamento[ACIMA/ABAIXO])","v":{"v":256,"d":"256.00"}}]
[]
["O gráfico de pizza na célula C19 é atualizado automaticamente.",null,"O gráfico de pizza que mostra a porcentagem de despesas de cada categoria está nesta célula."]

{"sheet":"Roupas-Festa-Música-Fotos","index":2,"n_rows":56,"n_cols":6,"rows_kept":56,"merged":[[16,1,16,4],[28,1,28,4],[29,1,29,4],[35,1,35,4],[48,1,48,4]]}
["Insira os custos Real e Estimado para cada categoria nas respectivas tabelas desta planilha. O valor acima ou abaixo é calculado automaticamente. O rótulo Roupas está na célula à direita. Instruções úteis sobre como usar esta planilha estão nas células desta coluna. Pressione Seta para baixo para começar.","Roupas",{"$nulls":3}," "]
[" Insira os detalhes na tabela Roupas, começando na célula à direita. A próxima instrução está na célula A18.","CATEGORIA","ESTIMADO","REAL","ACIMA/ABAIXO"," "]
[null,"Anel(is) de noivado",{"v":1500,"d":"1,500.00"},{"v":1500,"d":"1,500.00"},{"$f":"'Roupas-Festa-Música-Fotos'!$C3-'Roupas-Festa-Música-Fotos'!$D3","v":{"v":0,"d":"0.00"}}]
[null,"Anel do cônjuge 1",{"v":2000,"d":"2,000.00"},{"v":2300,"d":"2,300.00"},{"$f":"'Roupas-Festa-Música-Fotos'!$C4-'Roupas-Festa-Música-Fotos'!$D4","v":{"v":-300,"d":"-300.00 "}}]
[null,"Traje/smoking do cônjuge 1",{"v":3000,"d":"3,000.00"},{"v":2750,"d":"2,750.00"},{"$f":"'Roupas-Festa-Música-Fotos'!$C5-'Roupas-Festa-Música-Fotos'!$D5","v":{"v":250,"d":"250.00"}}]
[null,"Véu/tiara do cônjuge 1",{"v":500,"d":"500.00"},{"v":500,"d":"500.00"},{"$f":"'Roupas-Festa-Música-Fotos'!$C6-'Roupas-Festa-Música-Fotos'!$D6","v":{"v":0,"d":"0.00"}}]
[null,"Sapatos do cônjuge 1",{"v":350,"d":"350.00"},{"v":300,"d":"300.00"},{"$f":"'Roupas-Festa-Música-Fotos'!$C7-'Roupas-Festa-Música-Fotos'!$D7","v":{"v":50,"d":"50.00"}}]
[null,"Joias do cônjuge 1",{"v":400,"d":"400.00"},{"v":550,"d":"550.00"},{"$f":"'Roupas-Festa-Música-Fotos'!$C8-'Roupas-Festa-Música-Fotos'!$D8","v":{"v":-150,"d":"-150.00 "}}]
[null,"Meias do cônjuge 1",{"v":20,"d":"20.00"},{"v":20,"d":"20.00"},{"$f":"'Roupas-Festa-Música-Fotos'!$C9-'Roupas-Festa-Música-Fotos'!$D9","v":{"v":0,"d":"0.00"}}]
[null,"Anel do cônjuge 2",{"v":300,"d":"300.00"},{"v":250,"d":"250.00"},{"$f":"'Roupas-Festa-Música-Fotos'!$C10-'Roupas-Festa-Música-Fotos'!$D10","v":{"v":50,"d":"50.00"}}]
[null,"Traje/smoking do cônjuge 2",{"v":300,"d":"300.00"},{"v":350,"d":"350.00"},{"$f":"'Roupas-Festa-Música-Fotos'!$C11-'Roupas-Festa-Música-Fotos'!$D11","v":{"v":-50,"d":"-50.00 "}}]
[null,"Véu/tiara do cônjuge 2",{"v":500,"d":"500.00"},{"v":500,"d":"500.00"},{"$f":"'Roupas-Festa-Música-Fotos'!$C12-'Roupas-Festa-Música-Fotos'!$D12","v":{"v":0,"d":"0.00"}}]
[null,"Sapatos do cônjuge 2",{"v":200,"d":"200.00"},{"v":175,"d":"175.00"},{"$f":"'Roupas-Festa-Música-Fotos'!$C13-'Roupas-Festa-Música-Fotos'!$D13","v":{"v":25,"d":"25.00"}}]
[null,"Joias do cônjuge 2",{"v":400,"d":"400.00"},{"v":550,"d":"550.00"},{"$f":"'Roupas-Festa-Música-Fotos'!$C14-'Roupas-Festa-Música-Fotos'!$D14","v":{"v":-150,"d":"-150.00 "}}]
[null,"Meias do cônjuge 2",{"v":20,"d":"20.00"},{"v":25,"d":"25.00"},{"$f":"'Roupas-Festa-Música-Fotos'!$C15-'Roupas-Festa-Música-Fotos'!$D15","v":{"v":-5,"d":"-5.00 "}}]
[null,"Total de Roupas",{"$f":"SUBTOTAL(109,Roupas[ESTIMADO])","v":{"v":9490,"d":"9,490.00"}},{"$f":"SUBTOTAL(109,Roupas[REAL])","v":{"v":9770,"d":"9,770.00"}},{"$f":"SUBTOTAL(109,Roupas[ACIMA/ABAIXO])","v":{"v":-280,"d":"-280.00 "}}]
[]
["O rótulo Festa está na célula à direita.","Festa*"]
["Insira na tabela que começa na célula à direita os custos com a Festa, excluindo os custos com Entretenimento e Decoração. A próxima instrução está na célula A31.","CATEGORIA","ESTIMADO","REAL","ACIMA/ABAIXO"]
[null,"Taxas de salas/salão",{"v":200,"d":"200.00"},{"v":150,"d":"150.00"},{"$f":"'Roupas-Festa-Música-Fotos'!$C20-'Roupas-Festa-Música-Fotos'!$D20","v":{"v":50,"d":"50.00"}}]
[null,"Mesas e cadeiras",{"v":100,"d":"100.00"},{"v":50,"d":"50.00"},{"$f":"'Roupas-Festa-Música-Fotos'!$C21-'Roupas-Festa-Música-Fotos'!$D21","v":{"v":50,"d":"50.00"}}]
[null,"Alimentação",{"v":0,"d":"0.00"},{"v":0,"d":"0.00"},{"$f":"'Roupas-Festa-Música-Fotos'!$C22-'Roupas-Festa-Música-Fotos'!$D22","v":{"v":0,"d":"0.00"}}]
[null,"Bebidas",{"v":0,"d":"0.00"},{"v":0,"d":"0.00"},{"$f":"'Roupas-Festa-Música-Fotos'!$C23-'Roupas-Festa-Música-Fotos'!$D23","v":{"v":0,"d":"0.00"}}]
[null,"Roupa de mesa",{"v":0,"d":"0.00"},{"v":0,"d":"0.00"},{"$f":"'Roupas-Festa-Música-Fotos'!$C24-'Roupas-Festa-Música-Fotos'!$D24","v":{"v":0,"d":"0.00"}}]
[null,"Bolo",{"v":700,"d":"700.00"},{"v":700,"d":"700.00"},{"$f":"'Roupas-Festa-Música-Fotos'!$C25-'Roupas-Festa-Música-Fotos'!$D25","v":{"v":0,"d":"0.00"}}]
[null,"Lembranças",{"v":50,"d":"50.00"},{"v":28,"d":"28.00"},{"$f":"'Roupas-Festa-Música-Fotos'!$C26-'Roupas-Festa-Música-Fotos'!$D26","v":{"v":22,"d":"22.00"}}]
[null,"Funcionários e gorjetas",{"v":0,"d":"0.00"},{"v":0,"d":"0.00"},{"$f":"'Roupas-Festa-Música-Fotos'!$C27-'Roupas-Festa-Música-Fotos'!$D27","v":{"v":0,"d":"0.00"}}]
[null,"Total da Festa",{"$f":"SUBTOTAL(109,Festa[ESTIMADO])","v":{"v":1050,"d":"1,050.00"}},{"$f":"SUBTOTAL(109,Festa[REAL])","v":{"v":928,"d":"928.00"}},{"$f":"SUBTOTAL(109,Festa[ACIMA/ABAIXO])","v":{"v":122,"d":"122.00"}}]
[null,"* Exceto decoração e entretenimento"]
[]
["O rótulo Música ou Entretenimento está na célula à direita.","Música/entretenimento"]
["Insira os detalhes na tabela Música, começando na célula à direita. A próxima instrução está na célula A37.","CATEGORIA","ESTIMADO","REAL","ACIMA/ABAIXO"]
[null,"Músicos para a cerimônia",{"v":400,"d":"400.00"},{"v":400,"d":"400.00"},{"$f":"'Roupas-Festa-Música-Fotos'!$C33-'Roupas-Festa-Música-Fotos'!$D33","v":{"v":0,"d":"0.00"}}]
[null,"Banda/DJ para a festa",{"v":200,"d":"200.00"},{"v":0,"d":"0.00"},{"$f":"'Roupas-Festa-Música-Fotos'!$C34-'Roupas-Festa-Música-Fotos'!$D34","v":{"v":200,"d":"200.00"}}]
[null,"Total de Música/entretenimento",{"$f":"SUBTOTAL(109,Música[ESTIMADO])","v":{"v":600,"d":"600.00"}},{"$f":"SUBTOTAL(109,Música[REAL])","v":{"v":400,"d":"400.00"}},{"$f":"SUBTOTAL(109,Música[ACIMA/ABAIXO])","v":{"v":200,"d":"200.00"}}]
[]
["O rótulo Impressão ou Gráfica está na célula à direita.","Impressão/gráfica"]
["Insira os detalhes na tabela Impressão, começando na célula à direita. A próxima instrução está na célula A50.","CATEGORIA","ESTIMADO","REAL","ACIMA/ABAIXO"]
[null,"Convites",{"v":500,"d":"500.00"},{"v":450,"d":"450.00"},{"$f":"'Roupas-Festa-Música-Fotos'!$C39-'Roupas-Festa-Música-Fotos'!$D39","v":{"v":50,"d":"50.00"}}]
[null,"Comunicados",{"v":200,"d":"200.00"},{"v":175,"d":"175.00"},{"$f":"'Roupas-Festa-Música-Fotos'!$C40-'Roupas-Festa-Música-Fotos'!$D40","v":{"v":25,"d":"25.00"}}]
[null,"Cartões de agradecimento",{"v":100,"d":"100.00"},{"v":100,"d":"100.00"},{"$f":"'Roupas-Festa-Música-Fotos'!$C41-'Roupas-Festa-Música-Fotos'!$D41","v":{"v":0,"d":"0.00"}}]
[null,"Papel de carta pessoal",{"v":0,"d":"0.00"},{"v":0,"d":"0.00"},{"$f":"'Roupas-Festa-Música-Fotos'!$C42-'Roupas-Festa-Música-Fotos'!$D42","v":{"v":0,"d":"0.00"}}]
[null,"Livro de convidados",{"v":25,"d":"25.00"},{"v":25,"d":"25.00"},{"$f":"'Roupas-Festa-Música-Fotos'!$C43-'Roupas-Festa-Música-Fotos'!$D43","v":{"v":0,"d":"0.00"}}]
[null,"Programas",{"v":75,"d":"75.00"},{"v":80,"d":"80.00"},{"$f":"'Roupas-Festa-Música-Fotos'!$C44-'Roupas-Festa-Música-Fotos'!$D44","v":{"v":-5,"d":"-5.00 "}}]
[null,"Guardanapos da festa",{"v":35,"d":"35.00"},{"v":40,"d":"40.00"},{"$f":"'Roupas-Festa-Música-Fotos'!$C45-'Roupas-Festa-Música-Fotos'!$D45","v":{"v":-5,"d":"-5.00 "}}]
[null,"Cartela de fósforos",{"v":0,"d":"0.00"},{"v":0,"d":"0.00"},{"$f":"'Roupas-Festa-Música-Fotos'!$C46-'Roupas-Festa-Música-Fotos'!$D46","v":{"v":0,"d":"0.00"}}]
[null,"Caligrafia",{"v":0,"d":"0.00"},{"v":0,"d":"0.00"},{"$f":"'Roupas-Festa-Música-Fotos'!$C47-'Roupas-Festa-Música-Fotos'!$D47","v":{"v":0,"d":"0.00"}}]
[null,"Total de Impressão/gráfica",{"$f":"SUBTOTAL(109,Impressão[ESTIMADO])","v":{"v":935,"d":"935.00"}},{"$f":"SUBTOTAL(109,Impressão[REAL])","v":{"v":870,"d":"870.00"}},{"$f":"SUBTOTAL(109,Impressão[ACIMA/ABAIXO])","v":{"v":65,"d":"65.00"}}]
[]
["O rótulo Fotografia está na célula à direita.","Fotografia"]
["Insira os detalhes na tabela Fotografia, começando na célula à direita.","CATEGORIA","ESTIMADO","REAL","ACIMA/ABAIXO"]
[null,"Trajes formais",{"v":1300,"d":"1,300.00"},{"v":1300,"d":"1,300.00"},{"$f":"'Roupas-Festa-Música-Fotos'!$C52-'Roupas-Festa-Música-Fotos'!$D52","v":{"v":0,"d":"0.00"}}]
[null,"Impressões adicionais",{"v":25,"d":"25.00"},{"v":25,"d":"25.00"},{"$f":"'Roupas-Festa-Música-Fotos'!$C53-'Roupas-Festa-Música-Fotos'!$D53","v":{"v":0,"d":"0.00"}}]
[null,"Álbuns de fotos",{"v":100,"d":"100.00"},{"v":100,"d":"100.00"},{"$f":"'Roupas-Festa-Música-Fotos'!$C54-'Roupas-Festa-Música-Fotos'!$D54","v":{"v":0,"d":"0.00"}}]
[null,"Videografia",{"v":200,"d":"200.00"},{"v":150,"d":"150.00"},{"$f":"'Roupas-Festa-Música-Fotos'!$C55-'Roupas-Festa-Música-Fotos'!$D55","v":{"v":50,"d":"50.00"}}]
[null,"Total de Fotografia",{"$f":"SUBTOTAL(109,Fotografia[ESTIMADO])","v":{"v":1625,"d":"1,625.00"}},{"$f":"SUBTOTAL(109,Fotografia[REAL])","v":{"v":1575,"d":"1,575.00"}},{"$f":"SUBTOTAL(109,Fotografia[ACIMA/ABAIXO])","v":{"v":50,"d":"50.00"}}]

{"sheet":"Decor-Flores-Presentes-Viagem","index":3,"n_rows":48,"n_cols":5,"rows_kept":48,"merged":[[8,1,8,4],[9,1,9,4],[18,1,18,4],[27,1,27,4],[34,1,34,4]]}
["Insira os custos Real e Estimado para cada categoria nas respectivas tabelas desta planilha. O valor acima ou abaixo é calculado automaticamente. O rótulo Decorações está na célula à direita. Instruções úteis sobre como usar esta planilha estão nas células desta coluna. Pressione Seta para baixo para começar.","Decorações*"]
["Insira na tabela que começa na célula à direita os custos com Decoração, excluindo os custos com flores. A próxima instrução está na célula A11.","CATEGORIA","ESTIMADO","REAL","ACIMA/ABAIXO"]
[null,"Laços para os assentos",{"v":0,"d":"0.00"},{"v":0,"d":"0.00"},{"$f":"'Decor-Flores-Presentes-Viagem'!$C3-'Decor-Flores-Presentes-Viagem'!$D3","v":{"v":0,"d":"0.00"}}]
[null,"Peças de centro",{"v":300,"d":"300.00"},{"v":320,"d":"320.00"},{"$f":"'Decor-Flores-Presentes-Viagem'!$C4-'Decor-Flores-Presentes-Viagem'!$D4","v":{"v":-20,"d":"-20.00 "}}]
[null,"Velas",{"v":100,"d":"100.00"},{"v":75,"d":"75.00"},{"$f":"'Decor-Flores-Presentes-Viagem'!$C5-'Decor-Flores-Presentes-Viagem'!$D5","v":{"v":25,"d":"25.00"}}]
[null,"Iluminação",{"v":100,"d":"100.00"},{"v":75,"d":"75.00"},{"$f":"'Decor-Flores-Presentes-Viagem'!$C6-'Decor-Flores-Presentes-Viagem'!$D6","v":{"v":25,"d":"25.00"}}]
[null,"Balões",{"v":200,"d":"200.00"},{"v":250,"d":"250.00"},{"$f":"'Decor-Flores-Presentes-Viagem'!$C7-'Decor-Flores-Presentes-Viagem'!$D7","v":{"v":-50,"d":"-50.00 "}}]
[null,"Total de Decoração",{"$f":"SUBTOTAL(109,Decorações[ESTIMADO])","v":{"v":700,"d":"700.00"}},{"$f":"SUBTOTAL(109,Decorações[REAL])","v":{"v":720,"d":"720.00"}},{"$f":"SUBTOTAL(109,Decorações[ACIMA/ABAIXO])","v":{"v":-20,"d":"-20.00 "}}]
[null,"*Exceto flores"]
[]
["O rótulo Flores está na célula à direita.","Flores"]
["Insira os detalhes na tabela Flores, começando na célula à direita. A próxima instrução está na célula A20.","CATEGORIA","ESTIMADO","REAL","ACIMA/ABAIXO"]
[null,"Buquês",{"v":500,"d":"500.00"},{"v":450,"d":"450.00"},{"$f":"'Decor-Flores-Presentes-Viagem'!$C13-'Decor-Flores-Presentes-Viagem'!$D13","v":{"v":50,"d":"50.00"}}]
[null,"Flores de lapela",{"v":0,"d":"0.00"},{"v":0,"d":"0.00"},{"$f":"'Decor-Flores-Presentes-Viagem'!$C14-'Decor-Flores-Presentes-Viagem'!$D14","v":{"v":0,"d":"0.00"}}]
[null,"Corsages",{"v":0,"d":"0.00"},{"v":0,"d":"0.00"},{"$f":"'Decor-Flores-Presentes-Viagem'!$C15-'Decor-Flores-Presentes-Viagem'!$D15","v":{"v":0,"d":"0.00"}}]
[null,"Cerimônia",{"v":400,"d":"400.00"},{"v":400,"d":"400.00"},{"$f":"'Decor-Flores-Presentes-Viagem'!$C16-'Decor-Flores-Presentes-Viagem'!$D16","v":{"v":0,"d":"0.00"}}]
[null,"Festa",{"v":0,"d":"0.00"},{"v":0,"d":"0.00"},{"$f":"'Decor-Flores-Presentes-Viagem'!$C17-'Decor-Flores-Presentes-Viagem'!$D17","v":{"v":0,"d":"0.00"}}]
[null,"Total de Flores",{"$f":"SUBTOTAL(109,Flores[ESTIMADO])","v":{"v":900,"d":"900.00"}},{"$f":"SUBTOTAL(109,Flores[REAL])","v":{"v":850,"d":"850.00"}},{"$f":"SUBTOTAL(109,Flores[ACIMA/ABAIXO])","v":{"v":50,"d":"50.00"}}]
[]
["O rótulo Presentes está na célula à direita.","Presentes"]
["Insira os detalhes na tabela Presentes, começando na célula à direita. A próxima instrução está na célula A29.","CATEGORIA","ESTIMADO","REAL","ACIMA/ABAIXO"]
[null,"Participantes",{"v":1000,"d":"1,000.00"},{"v":400,"d":"400.00"},{"$f":"'Decor-Flores-Presentes-Viagem'!$C22-'Decor-Flores-Presentes-Viagem'!$D22","v":{"v":600,"d":"600.00"}}]
[null,"Futuro cônjuge 1",{"v":150,"d":"150.00"},{"v":200,"d":"200.00"},{"$f":"'Decor-Flores-Presentes-Viagem'!$C23-'Decor-Flores-Presentes-Viagem'!$D23","v":{"v":-50,"d":"-50.00 "}}]
[null,"Futuro cônjuge 2",{"v":150,"d":"150.00"},{"v":200,"d":"200.00"},{"$f":"'Decor-Flores-Presentes-Viagem'!$C24-'Decor-Flores-Presentes-Viagem'!$D24","v":{"v":-50,"d":"-50.00 "}}]
[null,"Pais",{"v":25,"d":"25.00"},{"v":25,"d":"25.00"},{"$f":"'Decor-Flores-Presentes-Viagem'!$C25-'Decor-Flores-Presentes-Viagem'!$D25","v":{"v":0,"d":"0.00"}}]
[null,"Leitores/outros participantes",{"v":20,"d":"20.00"},{"v":250,"d":"250.00"},{"$f":"'Decor-Flores-Presentes-Viagem'!$C26-'Decor-Flores-Presentes-Viagem'!$D26","v":{"v":-230,"d":"-230.00 "}}]
[null,"Total de Presentes",{"$f":"SUBTOTAL(109,Presentes[ESTIMADO])","v":{"v":1345,"d":"1,345.00"}},{"$f":"SUBTOTAL(109,Presentes[REAL])","v":{"v":1075,"d":"1,075.00"}},{"$f":"SUBTOTAL(109,Presentes[ACIMA/ABAIXO])","v":{"v":270,"d":"270.00"}}]
[]
["O rótulo Viagem ou Transporte está na célula à direita.","Viagem/transporte"]
["Insira os detalhes na tabela Viagem, começando na célula à direita. A próxima instrução está na célula A36.","CATEGORIA","ESTIMADO","REAL","ACIMA/ABAIXO"]
[null,"Limusines/carrinhos",{"v":100,"d":"100.00"},{"v":125,"d":"125.00"},{"$f":"'Decor-Flores-Presentes-Viagem'!$C31-'Decor-Flores-Presentes-Viagem'!$D31","v":{"v":-25,"d":"-25.00 "}}]
[null,"Estacionamento",{"v":0,"d":"0.00"},{"v":40,"d":"40.00"},{"$f":"'Decor-Flores-Presentes-Viagem'!$C32-'Decor-Flores-Presentes-Viagem'!$D32","v":{"v":-40,"d":"-40.00 "}}]
[null,"Táxis",{"v":0,"d":"0.00"},{"v":0,"d":"0.00"},{"$f":"'Decor-Flores-Presentes-Viagem'!$C33-'Decor-Flores-Presentes-Viagem'!$D33","v":{"v":0,"d":"0.00"}}]
[null,"Total de Viagem/transporte",{"$f":"SUBTOTAL(109,Viagem[ESTIMADO])","v":{"v":100,"d":"100.00"}},{"$f":"SUBTOTAL(109,Viagem[REAL])","v":{"v":165,"d":"165.00"}},{"$f":"SUBTOTAL(109,Viagem[ACIMA/ABAIXO])","v":{"v":-65,"d":"-65.00 "}}]
[]
["O rótulo Outras despesas está na célula à direita.","Outras despesas"]
["Insira os detalhes na tabela Outras despesas, começando na célula à direita.","CATEGORIA","ESTIMADO","REAL","ACIMA/ABAIXO"]
[null,"Sacerdote",{"v":0,"d":"0.00"},{"v":0,"d":"0.00"},{"$f":"'Decor-Flores-Presentes-Viagem'!$C38-'Decor-Flores-Presentes-Viagem'!$D38","v":{"v":0,"d":"0.00"}}]
[null,"Taxa da igreja/local da cerimônia",{"v":40,"d":"40.00"},{"v":55,"d":"55.00"},{"$f":"'Decor-Flores-Presentes-Viagem'!$C39-'Decor-Flores-Presentes-Viagem'!$D39","v":{"v":-15,"d":"-15.00 "}}]
[null,"Coordenador de casamento",{"v":0,"d":"0.00"},{"v":0,"d":"0.00"},{"$f":"'Decor-Flores-Presentes-Viagem'!$C40-'Decor-Flores-Presentes-Viagem'!$D40","v":{"v":0,"d":"0.00"}}]
[null,"Jantar de ensaio",{"v":450,"d":"450.00"},{"v":450,"d":"450.00"},{"$f":"'Decor-Flores-Presentes-Viagem'!$C41-'Decor-Flores-Presentes-Viagem'!$D41","v":{"v":0,"d":"0.00"}}]
[null,"Festa de noivado",{"v":20,"d":"20.00"},{"v":50,"d":"50.00"},{"$f":"'Decor-Flores-Presentes-Viagem'!$C42-'Decor-Flores-Presentes-Viagem'!$D42","v":{"v":-30,"d":"-30.00 "}}]
[null,"Chás de cozinha",{"v":30,"d":"30.00"},{"v":20,"d":"20.00"},{"$f":"'Decor-Flores-Presentes-Viagem'!$C43-'Decor-Flores-Presentes-Viagem'!$D43","v":{"v":10,"d":"10.00"}}]
[null,"Salão de beleza",{"v":45,"d":"45.00"},{"v":46,"d":"46.00"},{"$f":"'Decor-Flores-Presentes-Viagem'!$C44-'Decor-Flores-Presentes-Viagem'!$D44","v":{"v":-1,"d":"-1.00 "}}]
[null,"Despedidas de solteira/solteiro",{"v":0,"d":"0.00"},{"v":0,"d":"0.00"},{"$f":"'Decor-Flores-Presentes-Viagem'!$C45-'Decor-Flores-Presentes-Viagem'!$D45","v":{"v":0,"d":"0.00"}}]
[null,"Brunch",{"v":300,"d":"300.00"},{"v":400,"d":"400.00"},{"$f":"'Decor-Flores-Presentes-Viagem'!$C46-'Decor-Flores-Presentes-Viagem'!$D46","v":{"v":-100,"d":"-100.00 "}}]
[null,"Quartos de hotel",{"v":0,"d":"0.00"},{"v":0,"d":"0.00"},{"$f":"'Decor-Flores-Presentes-Viagem'!$C47-'Decor-Flores-Presentes-Viagem'!$D47","v":{"v":0,"d":"0.00"}}]
[null,"Total de Outras despesas",{"$f":"SUBTOTAL(109,OutrasDespesas[ESTIMADO])","v":{"v":885,"d":"885.00"}},{"$f":"SUBTOTAL(109,OutrasDespesas[REAL])","v":{"v":1021,"d":"1,021.00"}},{"$f":"SUBTOTAL(109,OutrasDespesas[ACIMA/ABAIXO])","v":{"v":-136,"d":"-136.00 "}}]